Cogmind - Beta 11 @@@ ROGUE MODE // 2022.04.17 @ 00:47:22 Player: RNGesus Result: Self-destructed Performance ------------- Evolutions (2) 1000 Regions Visited (5) 1000 Robots Destroyed (42) 210 Value Destroyed (1013) 1013 Prototype IDs (1) 20 Alien Tech Used (0) 0 Bonus (21) 21 TOTAL SCORE: 3264 Bonus ------- Follower Combat Kills 21 Cogmind --------- Core Integrity 123/550 Matter 286/300 Energy 21/100 System Corruption 7% Temperature Cool (9) Movement Core (750) Ox14 Location -8/Materials Parts ------- > --- POWER (1) -------- (None) > --- PROPULSION (4) --- (None) > --- UTILITY (4) ------ Cooling System High-capacity Storage Unit > --- WEAPON (2) ------- Pulse Rifle > --- INVENTORY (20) --- Light Angular Momentum Engine Light Angular Momentum Engine Cooling System Structural Scanner Experimental Sensor Array Transport Network Coupler Improved Light Armor Plating Hacking Suite System Shield Improved EM Shotgun Medium Laser Shock Bomb Launcher Katana Makeshift Axe Peak State ------------ > --- POWER ------------ Light Ion Engine > --- PROPULSION ------- Armored Treads Advanced Treads Advanced Treads > --- UTILITY ---------- Improved Heat Sink Cooling System High-capacity Storage Unit > --- WEAPON ----------- Improved EM Shotgun Beamcaster > --- INVENTORY -------- Light Ion Engine Light Nuclear Core Light Nuclear Core Light Angular Momentum Engine Light Angular Momentum Engine Wheel Structural Scanner Experimental Sensor Array Transport Network Coupler Improved Light Armor Plating Hacking Suite System Shield Improved EM Shotgun Improved EM Shotgun Medium Laser Beam Rifle Pulse Rifle Light Assault Rifle Katana Makeshift Axe [Rating: 29] Favorites ----------- Power Light Ion Engine Engine Light Ion Engine Power Core Light Nuclear Core Propulsion Light Treads Treads Light Treads Wheel Wheel Utility Large Storage Unit Device Cooling System Storage Large Storage Unit Protection Weapon Shielding Weapon Assault Rifle Energy Gun EM Pulse Gun Ballistic Gun Assault Rifle Slashing Weapon Katana Build | -11 -10 -10 -10 -9 -8 ------- Run | Scr Mat Min Exi Min Mat Slots Evolved 4 | . . . . . 4 Power . | . . . . . . Propulsion 2 | . . . . . 2 Utility 2 | . . . . . 2 Weapon . | . . . . . . Parts Attached 32 | 6 2 1 1 . 22 Power 3 | 1 . . . . 2 Engine 2 | 1 . . . . 1 Core 1 | . . . . . 1 Reactor . | . . . . . . Propulsion 8 | 2 . 1 . . 5 Treads 7 | 2 . 1 . . 4 Leg . | . . . . . . Wheel 1 | . . . . . 1 Hover . | . . . . . . Flight . | . . . . . . Utility 9 | 1 1 . 1 . 6 Device 3 | . . . . . 3 Storage 3 | 1 1 . 1 . . Processor . | . . . . . . Hackware . | . . . . . . Protection 3 | . . . . . 3 Artifact . | . . . . . . Weapon 12 | 2 1 . . . 9 Energy Gun 7 | 1 . . . . 6 Energy Cannon . | . . . . . . Ballistic Gun 3 | 1 1 . . . 1 Ballistic Cannon . | . . . . . . Launcher . | . . . . . . Special Weapon . | . . . . . . Impact Weapon . | . . . . . . Slashing Weapon 2 | . . . . . 2 Piercing Weapon . | . . . . . . Special Melee Weapon . | . . . . . . Unidentified Prototypes 1 | . . . . . 1 Corrupted Parts 2 | . . . . . 2 System Corruption 7 | . . . . . 7 Parts Lost 18 | . 1 1 . . 16 Power 2 | . . . . . 2 Propulsion 7 | . . 1 . . 6 Utility 3 | . . . . . 3 Weapon 6 | . 1 . . . 5 Highest Loss Streak 8 | . 1 1 . . 8 To Critical Strikes . | . . . . . . Average Slot Usage (%) 86 | . 84 84 86 100 72 Engine 12 | . 14 14 14 14 5 Treads 26 | . 28 27 28 28 21 Device 1 | . . . . . 7 Storage 17 | . 14 14 15 28 12 Energy Gun 3 | . 6 . . . 9 Ballistic Gun 22 | . 21 28 28 28 7 Naked Turns . | . . . . . . Heaviest Build 74 | 12 32 26 66 66 74 Greatest Support 64 | 40 40 40 40 40 64 Greatest Overweight (x) 5 | 3 . . 1 1 5 Average Overweight (x) . | 1 . . . 1 . Largest Inventory Capacity 20 | 8 15 15 20 20 20 Average Capacity 17 | 7 14 15 15 20 20 Most Carried 20 | 3 9 12 12 14 20 Average Carried 11 | 1 6 10 12 12 16 Final Capacity 20 | 8 15 15 20 20 20 Final Carried 14 | 3 9 12 12 14 14 Class Distribution -------------------- 100% | Mutant Dominant Class ---------------- Mutant | -10/Materials Mutant | -10/Mines Mutant | -10/Exiles Mutant | -9/Mines Mutant | -8/Materials Resources | -11 -10 -10 -10 -9 -8 ----------- Run | Scr Mat Min Exi Min Mat Matter Collected 854 | 201 231 73 . 31 318 Remotely . | . . . . . . Salvage Created 1542 | . 517 147 . 13 865 Parts 82 | . 41 8 . . 33 Haulers Intercepted 5 | . 2 . . . 3 Recyclers Shooed 2 | . . . . . 2 Parts Field Recycled . | . . . . . . Retrieved Matter . | . . . . . . Parts Self-Destructed . | . . . . . . Prevented . | . . . . . . Kills | -11 -10 -10 -10 -9 -8 ------- Run | Scr Mat Min Exi Min Mat Combat Hostiles Destroyed 32 | . 14 5 . 1 12 Guns 32 | . 14 5 . 1 12 Classes Destroyed 9 | . 5 . . . 4 Worker 2 | . . . . . 2 Tunneler 1 | . 1 . . . . Hauler 5 | . 2 . . . 3 Operator 2 | . 2 . . . . Swarmer 13 | . 9 3 . 1 . Grunt 15 | . 5 2 . . 8 Duelist 1 | . . . . . 1 Sentry 2 | . . . . . 2 Hunter 1 | . . . . . 1 Best Kill Streak 7 | . 7 3 . 1 3 Combat Bots Only 7 | . 7 3 . 1 3 Max Kills in Single Turn 2 | . 2 1 . 1 1 Gunslinging 1 | . 1 . . . . Exploded . | . . . . . . Melee . | . . . . . . Uniques/NPCs Destroyed . | . . . . . . Combat | -11 -10 -10 -10 -9 -8 -------- Run | Scr Mat Min Exi Min Mat Damage Taken 2667 | . 284 267 . 36 2080 Core 521 | . 46 48 . . 427 Absorbed by Shields . | . . . . . . Redirected to Shielding 50 | . . . . . 50 Regen/Repaired (Parts) 65 | . . . . . 65 Core Remaining (%) 81 | 100 . . . 62 . Volleys Fired 143 | . 43 17 . 4 79 Largest 2 | . 2 2 . 2 2 Hottest 120 | . 60 40 . 40 120 Shots Fired 253 | . 84 34 . 8 127 Gun 253 | . 84 34 . 8 127 Cannon . | . . . . . . Launcher . | . . . . . . Special . | . . . . . . Kinetic 157 | . 69 34 . 8 46 Thermal 64 | . . . . . 64 Explosive . | . . . . . . Electromagnetic 32 | . 15 . . . 17 Robot Hit Streak 12 | . 7 5 . 7 12 Robot Miss Streak 3 | . 3 2 . 1 3 Penetration Max . | . . . . . . Secondary Targets 2 | . 1 1 . . . Max Gunslinging Chain 1 | . 1 1 . . . Shots Hit Robots 176 | . 52 21 . 7 96 Core Hits 81 | . 29 11 . 2 39 Critical Kills . | . . . . . . Critical Parts Destroyed 3 | . 1 1 . . 1 Critical Strikes 8 | . 1 1 . . 6 Burn 5 | . . . . . 5 Destroy 3 | . 1 1 . . 1 Melee Attacks 3 | . . . . . 3 Impact . | . . . . . . Slashing 3 | . . . . . 3 Piercing . | . . . . . . Sneak Attacks . | . . . . . . Combat Hostiles . | . . . . . . Follow-up Attacks 1 | . . . . . 1 Damage Inflicted 2513 | . 607 253 . 74 1579 Guns 2459 | . 607 253 . 74 1525 Cannons . | . . . . . . Explosions . | . . . . . . Melee 54 | . . . . . 54 Ramming . | . . . . . . Kinetic 1159 | . 492 253 . 74 340 Thermal 918 | . . . . . 918 Explosive . | . . . . . . Electromagnetic 382 | . 115 . . . 267 Impact . | . . . . . . Slashing 54 | . . . . . 54 Piercing . | . . . . . . Highest Corruption 7 | . . . . . 7 Average Corruption 6 | . . . . . 6 Corruption Purged . | . . . . . . Corruption Blocked . | . . . . . . Effects 21 | . . . . . 21 Message Errors 4 | . . . . . 4 Matter Fused 5 | . . . . . 5 Heat Flow Errors 2 | . . . . . 2 Energy Discharges 3 | . . . . . 3 Data Loss (minor) 3 | . . . . . 3 Data Loss (major) 1 | . . . . . 1 Misfires 1 | . . . . . 1 Alerts 1 | . . . . . 1 Weapon Failures 1 | . . . . . 1 Overload Shots . | . . . . . . Overflow Damage . | . . . . . . Projectiles . | . . . . . . Explosions . | . . . . . . Melee . | . . . . . . Knockbacks . | . . . . . . Impact . | . . . . . . Kinetic . | . . . . . . Secondary . | . . . . . . Self-Inflicted Damage 45 | . . . . . 45 Shots 1 | . . . . . 1 Rammed . | . . . . . . Targets Rammed . | . . . . . . Kicked . | . . . . . . Crushed . | . . . . . . Highest Temperature 448 | . 30 27 . . 448 Average Temperature 124 | . 16 12 . . 157 Received Heat Transfer 750 | . 48 96 . . 606 Effects 8 | . . . . . 8 Shutdowns 2 | . . . . . 2 Energy Bleed 1 | . . . . . 1 Interference 1 | . . . . . 1 Matter Decay 1 | . . . . . 1 Damage (major) 3 | . . . . . 3 Siege Activations . | . . . . . . Robots Corrupted . | . . . . . . Combat Hostiles . | . . . . . . Parts Fried . | . . . . . . Impact Corruptions . | . . . . . . Robots Melted . | . . . . . . Combat Hostiles . | . . . . . . Parts Melted 4 | . . . . . 4 Heat Transferred 2109 | . . . . . 2109 Parts Sabotaged . | . . . . . . Parts Stolen . | . . . . . . Parts Stripped . | . . . . . . Power Chain Reactions 1 | . . . . . 1 Missiles Intercepted . | . . . . . . Alert | -11 -10 -10 -10 -9 -8 ------- Run | Scr Mat Min Exi Min Mat Peak Influence 241 | . 241 120 . 74 185 Initial 10 | . . 10 . . . Average 47 | . 100 22 . 7 55 Maximum Alert Level 1 | . 1 . . . . Low Security (%) 96 | 100 88 100 . 100 100 Level 1 3 | . 11 . . . . Level 2 . | . . . . . . Level 3 . | . . . . . . Level 4 . | . . . . . . Level 5 . | . . . . . . High Security . | . . . . . . Max Security . | . . . . . . Squads Dispatched 6 | . 3 . . . 3 Investigation 2 | . 1 . . . 1 Extermination . | . . . . . . Reinforcement 4 | . 2 . . . 2 Assault . | . . . . . . Garrison . | . . . . . . Intercept . | . . . . . . Searches Triggered . | . . . . . . Construction Impeded . | . . . . . . Haulers Reinforced . | . . . . . . Active Scanning Responses . | . . . . . . Cargo Convoy Interrupts . | . . . . . . Stealth | -11 -10 -10 -10 -9 -8 --------- Run | Scr Mat Min Exi Min Mat Distress Signals 3 | . 2 . . . 1 Communications Jammed . | . . . . . . Distress Signals . | . . . . . . Times Spotted 59 | . 28 5 . 4 22 Peak Tracking Total 5 | . 5 3 . 4 5 Tactical Retreats 2 | . 1 . . . 1 Traps | -11 -10 -10 -10 -9 -8 ------- Run | Scr Mat Min Exi Min Mat Traps Triggered 1 | . 1 . . . . Indirectly . | . . . . . . Trap Hack Attempts . | . . . . . . Triggered . | . . . . . . Disarmed . | . . . . . . Reprogrammed . | . . . . . . Reused . | . . . . . . Traps Extracted . | . . . . . . Installed . | . . . . . . Triggered . | . . . . . . Machines | -11 -10 -10 -10 -9 -8 ---------- Run | Scr Mat Min Exi Min Mat Machines Disabled 1 | . . . . . 1 Max in Single Turn 1 | . . . . . 1 Machines Sabotaged . | . . . . . . Garrisons Compromised . | . . . . . . Overloaded Fab Kills . | . . . . . . Hacking | -11 -10 -10 -10 -9 -8 --------- Run | Scr Mat Min Exi Min Mat Machines Accessed 9 | . 3 1 1 . 4 Terminals 6 | . 3 . . . 3 Fabricators . | . . . . . . Repair Stations 1 | . . . . . 1 Recycling Units . | . . . . . . Scanalyzers . | . . . . . . Garrison Access . | . . . . . . Total Hacks 14 | . 5 1 1 . 7 Successful 7 | . 2 1 1 . 3 Failed 7 | . 3 . . . 4 Catastrophic 2 | . 1 . . . 1 Database Lockouts . | . . . . . . Manual 10 | . 5 . . . 5 Terminals 10 | . 5 . . . 5 Fabricators . | . . . . . . Repair Stations 2 | . . . . . 2 Recycling Units . | . . . . . . Scanalyzers . | . . . . . . Garrison Access . | . . . . . . Terminal Hacks 5 | . 2 1 1 . 1 Record 1 | . . . 1 . . Robot Analysis 2 | . 2 . . . . Open Door 1 | . . 1 . . . Hauler Manifests 1 | . . . . . 1 Fabricator Hacks . | . . . . . . Repair Station Hacks 2 | . . . . . 2 Scan Component 1 | . . . . . 1 Repair 1 | . . . . . 1 Recycling Unit Hacks . | . . . . . . Scanalyzer . | . . . . . . Garrison Access Hacks . | . . . . . . Unauthorized Hacks . | . . . . . . Terminals . | . . . . . . Fabricators . | . . . . . . Repair Stations . | . . . . . . Recycling Units . | . . . . . . Scanalyzers . | . . . . . . Garrison Access . | . . . . . . Data Cores Recovered . | . . . . . . Used . | . . . . . . Hacking Detections 5 | . 2 . . . 3 Full Trace Events 2 | . 1 . . . 1 Feedback Events . | . . . . . . Feedback Blocked . | . . . . . . Robot Schematics Acquired . | . . . . . . Robots Built . | . . . . . . Authchips . | . . . . . . Time . | . . . . . . Total Robot Build Rating . | . . . . . . Part Schematics Acquired . | . . . . . . Parts Built . | . . . . . . Authchips . | . . . . . . Time . | . . . . . . Total Part Build Rating . | . . . . . . Parts Repaired 1 | . . . . . 1 Time 51 | . . . . . 51 Parts Recycled . | . . . . . . Recycled Matter . | . . . . . . Retrieved Matter . | . . . . . . Retrieved Components . | . . . . . . Parts Scanalyzed . | . . . . . . Part Schematics Acquired . | . . . . . . Parts Damaged . | . . . . . . Bothacking | -11 -10 -10 -10 -9 -8 ------------ Run | Scr Mat Min Exi Min Mat Used RIF Installer . | . . . . . . Robots Hacked . | . . . . . . Non-combat . | . . . . . . Combat . | . . . . . . Robot Hacks Applied . | . . . . . . Relay Couplers Released . | . . . . . . Fabnet Peak Effective % . | . . . . . . Robots Rewired . | . . . . . . Allies Hacked . | . . . . . . Hacks Repelled . | . . . . . . Allies | -11 -10 -10 -10 -9 -8 -------- Run | Scr Mat Min Exi Min Mat Total Allies 4 | . . 3 . 1 . Largest Group 3 | . . 3 3 1 . Highest-Rated Group 81 | . . 81 81 31 . Highest-Rated Ally 31 | . . 31 31 31 . Total Orders . | . . . . . . Ally Attacks 13 | . . . . 13 . Total Damage 169 | . . . . 169 . Kills 3 | . . . . 3 . Allies Corrupted . | . . . . . . Allies Melted . | . . . . . . Intel | -11 -10 -10 -10 -9 -8 ------- Run | Scr Mat Min Exi Min Mat Robot Analysis Total 2 | . 2 . . . . Derelict Logs Recovered 2 | . . 1 . 1 . Drone Launches . | . . . . . . Drone Recoveries . | . . . . . . Exploration | -11 -10 -10 -10 -9 -8 ------------- Run | Scr Mat Min Exi Min Mat Turns Passed 5580 | 95 1442 1025 660 1302 1056 Spaces Moved 2756 | 51 810 602 398 527 368 Core 25 | 25 . . . . . Treads 2725 | 26 810 602 398 527 362 Legs . | . . . . . . Wheels 6 | . . . . . 6 Hover . | . . . . . . Flight . | . . . . . . Fastest Speed 50 | 50 160 160 160 240 153 Average Speed 181 | 165 160 160 165 240 196 Slowest Speed 240 | 200 160 160 240 240 240 Overloaded Moves . | . . . . . . Propulsion Burnouts . | . . . . . . Robots Hopped . | . . . . . . Cave-ins Triggered . | . . . . . . Exploration Rate (%) 70 | 3 98 99 82 99 41 Regions Visited 5 Branch Regions 3 Pre-discovered Areas . | . . . . . . Known Exits Taken . | . . . . . . Unknown Exits Taken 5 | 1 1 1 1 1 . Scrap Searched 3 | . . 1 . 2 . Spaces Dug . | . . . . . . Terrain Destroyed 5 | . . . . . 5 Melee . | . . . . . . Projectile . | . . . . . . AOE 5 | . . . . . 5 Terrain Rammed . | . . . . . . Walls Destroyed . | . . . . . . Machines Disabled . | . . . . . . Actions | -11 -10 -10 -10 -9 -8 --------- Run | Scr Mat Min Exi Min Mat Total 3101 | 59 878 633 399 558 574 Wait 128 | . 13 10 1 24 80 Move 2751 | 50 809 601 397 526 368 Hop . | . . . . . . Pick Up 32 | 3 8 4 . 3 14 Fast Attach 17 | 6 1 . 1 . 9 Attach 12 | . 1 1 . . 10 Detach 3 | . 1 . . . 2 Swap 3 | . . . . . 3 Drop 10 | . 2 . . 1 7 Fire 143 | . 43 17 . 4 79 Melee 2 | . . . . . 2 Ram . | . . . . . . Kick . | . . . . . . Crush . | . . . . . . Escape Stasis . | . . . . . . Rewire . | . . . . . . Trap . | . . . . . . Miscellaneous . | . . . . . . Route ------- -11/Scrapyard -10/Materials (discovered 4 exits: [*Mat x3] / *Min) -10/Mines (discovered 3 exits: [*Mat x2] / *Exi) -10/Exiles -9/Mines (discovered 2 exits: *Mat x2) -8/Materials (discovered 1 exit: [*Fac]) History --------- Turn | Location | Event 15 | -11/Scrapyard | Discovered new exit (range 15) 96 | -11/Scrapyard | Entered Materials 312 | -10/Materials | Build established: Mutant 439 | -10/Materials | Discovered new exit (range 8) 546 | -10/Materials | Destroyed 7 combat bots 681 | -10/Materials | Discovered new exit (range 6) 853 | -10/Materials | Discovered new exit (range 13) 1206 | -10/Materials | Discovered new exit (range 15) 1538 | -10/Materials | Entered Mines 1551 | -10/Mines | Found a damaged Exp. Sensor Array with a note attached 1554 | -10/Mines | Found Prototype Device 1681 | -10/Mines | Discovered new exit (range 13) 1775 | -10/Mines | A weapon hastily lodged in a ceiling crevice suddenly fell to the ground 2017 | -10/Mines | Discovered new exit (range 14) 2090 | -10/Mines | Deemed a non-threat by the Exiles lab entrance 2090 | -10/Mines | Discovered new exit (range 5) 2123 | -10/Mines | Met a Derelict who couldn't figure out how to use a Trap Extractor 2407 | -10/Mines | Received a Mining Laser from a helpful Derelict 2563 | -10/Mines | Entered Exiles 2563 | -10/Exiles | Found Exiles lab abandoned 2563 | -10/Exiles | Accompanied by 3 allies 2593 | -10/Exiles | Led the pair of lost Derelicts to a safe place 3196 | -10/Exiles | Discovered new exit (range 14) 3223 | -10/Exiles | Entered Mines 3688 | -9/Mines | Escorted by a lone wolf Derelict 4033 | -9/Mines | Discovered new exit (range 5) 4100 | -9/Mines | Discovered new exit (range 12) 4525 | -9/Mines | Entered Materials 4525 | -8/Materials | Evolved 4 slots: Propulsion x2, Utility x2 5286 | -8/Materials | Lost 3 parts (1p1n1w) 5413 | -8/Materials | Repaired Imp. EM Shotgun 5436 | -8/Materials | Discovered new exit (range 13) 5565 | -8/Materials | Core integrity fell below 50% 5581 | -8/Materials | Self-destructed Last Messages --------------- 05570_ Critical hit (Blast). 05570_ Knocked back. 05570_ U-05 Engineer lays Concrete. 05572_ K-01 Serf collects debris. 05572_ U-05 Engineer lays Concrete. 05573_ U-05 Engineer builds a Wall. 05574_ U-05 Engineer lays Concrete. 05574_ U-05 Engineer builds a Door. 05575_ U-05 Engineer lays Concrete. 05575_ Hrd. Light Armor Plating destroyed. 05575_ Knocked back. 05575_ K-01 Serf collects debris. 05576_ U-05 Engineer lays Concrete. 05578_ Weapon Shielding destroyed. 05578_ U-05 Engineer lays Concrete. 05578_ U-05 Engineer builds a Wall. 05579_ U-05 Engineer lays Concrete. 05580_ Knocked back. 05580_ Beam Rifle destroyed. 05581_ U-05 Engineer lays Concrete. Map ----- +----------------------------------------------------+ | | | | | | | | | | | | | | | | | | | | | | | | | ???????????????????????????#####?????????????????? | | ??????????????????????????? #????????????????? | | ??????????????????????????? #????????????????? | | ???????????????????????? ?? #????????????????? | | ???????????????????????? ?? #????????????????? | | ?########?????##########]?? #????????????????? | | ?? #?????# # ?? ?????????????????? | | ### #?????# """ # ?? ??????????????????? | | ? #?????# # ?? ???????????????????? | | ??? ####### ;####;####????????????????? | | ##### ### [ # u ;; #????????????????? | | # g;; % #????????????????? | | + g;; !#????????????????? | | # g/k@ H #????????????????? | | ######### ] # u# % #????????????????? | | ######## %##########u; % #????????????????? | | *# # # " ; #????????????????? | | # # # ; ;## ###????????????????? | | " #[[" " + + T #;##### #??????????????????? | | " # "R" # # "" # ????# #??????????????????? | | " # """ + # ?#?????# #??????????????????? | | ### # # ????????# Y#??????????????????? | | ########## #?###????????# ??????????????????? | | = # #????????????+ ?????????????????? | | " """ # #????????????# ?????????????????? | | " """ + #????????????## ### ????????????????? | | " """ # #?????????????? #???????????????????? | | # ##?????########+#???????????????????? | | ##########%==##?????# #???????????????????? | | ########+#######?# """ #???????????????????? | | ## [ %! #?# """ % #???????????????????? | | ## #?# """ ###?????????????????? | | "" ## """ " " """ #?# + #???????????????? | | "" ## """ """ "" ### """ ###?????????????????? | | "" ?# """ """ """ + + """ #???????????????????? | | #### ### """ #???????????????????? | | ????###############?# *#???#???????????????? | | ?????????? ???#??#####+###### #####???????????? | +----------------------------------------------------+ Best States ------------- Heat Dissipation 53 Energy Generation 14 Energy Capacity 160 Matter Stores 300 Matter Capacity 300 Sight Range 16 Terrain Scan Density 10 Armor Coverage 150 Weapon Shielding 33 Evasion (%) 40 Recoil Reduction 3 Item Schematics ----------------- None Robot Schematics ------------------ None Fabricated ------------ Nothing Alien Tech Used ----------------- None Achievements -------------- None Challenges ------------ None Game ------ Seed GravmagNuclearAirjet Manual? 0 Play Time 00:27:57 Cumulative 338.2 hours Start 2022.04.16 @ 23:51:59 End 2022.04.17 @ 00:47:22 Sessions 1 Manual Loads 0 Difficulty Rogue Special Mode None Game No. 495 Rogue 495 Adventurer 0 Explorer 0 Win Type - Total 6 Types 4/0/1/1/0/0/0/0/0 Lore% 81 Gallery% 84 Achievement% 66 Wizard Run 0 Options --------- ASCII 0 Keyboard 1 Movement Numpad Keybinds 0 Fullscreen 2 Font 24/Smallcaps Map View 76x50 Tactical HUD 1 Map Filters NONE Filters NONE Steam 1 RUN: 29ba4b5d-ce14-4b68-b48c-ac1bf92f4d4f